bitfinex-derivatives/quotes_ETHF0:USTF0_20230902
["timestamp","ask_amount","ask_price","bid_price","bid_amount"]
[1693691448960,13.06664679,1638.1,1638.0,4.60276701]
[1693691448961,14.17267604,1638.1,1638.0,4.60276701]
[1693691449863,14.17267653,1638.1,1638.0,4.60276701]
[1693691450063,14.17267657,1638.1,1638.0,4.60276701]
[1693691450266,11.77086624,1638.1,1638.0,6.19806341]
[1693691450659,13.86826243,1638.1,1638.0,4.60276701]
[1693691452763,15.46987737,1638.1,1638.0,4.60276701]
[1693691453073,13.86826243,1638.1,1638.0,4.60276701]
[1693691453576,15.46976799,1638.1,1638.0,4.60276701]
[1693691457375,13.06694547,1638.1,1638.0,4.60276701]
[1693691457573,13.86826243,1638.1,1638.0,3.80433795]
[1693691459379,13.86826243,1638.1,1638.0,1.59447589]
[1693691464081,13.86826243,1638.1,1637.8,6.21487683]
[1693691464082,13.86826243,1638.1,1637.8,3.0248]
[1693691464282,13.86826243,1638.1,1638.0,1.59415995]
[1693691464283,8.37169501,1638.1,1638.0,1.59415995]
[1693691464482,13.86669501,1638.1,1638.0,1.59415995]
[1693691465379,13.86669501,1638.1,1637.9,1.5943813]
[1693691465380,22.73749671,1638.1,1637.9,1.5943813]
[1693691465683,17.89608838,1638.0,1637.8,3.98562123]
[1693691465876,11.77093512,1637.9,1637.8,3.98562123]
[1693691466082,14.85413512,1637.9,1637.8,3.98562123]
[1693691466281,14.85413512,1637.9,1637.8,3.61549495]
[1693691466677,14.85413512,1637.9,1637.8,1.5943813]
[1693691471475,14.85413512,1637.9,1637.7,3.98562123]
[1693691471681,5.495,1637.8,1637.7,5.94438837]
[1693691472586,5.495,1637.8,1637.7,3.55314844]
[1693691472881,5.495,1637.8,1637.7,1.5943813]
[1693691478285,5.495,1637.8,1637.6,10.51652123]
[1693691478486,9.35913512,1637.9,1637.6,10.51652123]
[1693691478487,5.495,1637.7,1637.6,10.51652123]
[1693691478693,5.495,1637.7,1637.6,12.47474983]
[1693691480788,5.495,1637.7,1637.6,10.88036853]
[1693691481591,5.495,1637.7,1637.6,12.47333643]
[1693691481793,5.495,1637.7,1637.6,10.0820965]
[1693691481985,5.495,1637.7,1637.6,12.41223643]
[1693691482493,5.495,1637.7,1637.6,12.47333643]
[1693691482694,5.495,1637.7,1637.6,1.5929679]
[1693691482988,9.79053292,1637.7,1637.5,1.5929679]
[1693691483195,10.1702022,1637.6,1637.5,3.53978406]
[1693691483690,10.1702022,1637.6,1637.5,1.5929679]
[1693691486788,10.1702022,1637.6,1637.4,6.64200783]
[1693691486990,4.6752022,1637.6,1637.5,1.5929679]
[1693691487190,10.1702022,1637.6,1637.5,1.5929679]
[1693691487691,10.1702022,1637.6,1637.4,6.64200783]
[1693691487892,5.495,1637.5,1637.4,6.64200783]
[1693691488096,5.495,1637.5,1637.4,8.5397823]
[1693691488393,8.0937,1637.5,1637.4,8.5397823]
[1693691490900,8.0937,1637.5,1637.4,6.14854237]
[1693691491300,8.0937,1637.5,1637.4,8.4786823]
[1693691491494,8.0937,1637.5,1637.4,6.14854237]
[1693691494512,8.0937,1637.5,1637.4,4.2507679]
[1693691496110,8.0937,1637.5,1637.4,2.6578]
[1693691502520,8.0937,1637.5,1637.4,0.0611]
[1693691502932,8.0937,1637.5,1637.4,1.6540679]
[1693691506118,8.0937,1637.5,1637.4,1.5929679]
[1693691506319,4.6752022,1637.4,1637.2,1.11833101]
[1693691506623,5.495,1637.3,1637.1,4.89413993]
[1693691506822,10.1702022,1637.2,1637.1,4.89413993]
[1693691507014,10.1702022,1637.2,1637.1,4.260691]
[1693691507413,10.1702022,1637.2,1637.1,2.5029]
[1693691510216,10.1702022,1637.2,1637.0,2.39108142]
[1693691510426,5.495,1637.1,1637.0,4.83558142]
[1693691510624,8.0813,1637.1,1637.0,6.59298547]
[1693691512615,8.0813,1637.1,1637.0,4.20190405]
[1693691514825,8.0813,1637.1,1637.0,2.4445]
[1693691521332,13.5763,1637.1,1637.0,2.4445]
[1693691522234,13.5763,1637.1,1636.8,0.0611]
[1693691522428,4.6752022,1637.0,1636.8,0.0611]
[1693691522729,5.495,1636.9,1636.8,0.0611]
[1693691526237,7.9434,1636.9,1636.8,0.0611]
[1693691528931,7.9434,1636.9,1636.7,2.4522]
[1693691529127,5.495,1636.8,1636.7,2.4522]
[1693691529435,10.1702022,1636.8,1636.7,2.4522]
[1693691529635,10.1702022,1636.8,1636.7,4.08797489]
[1693691530238,10.1702022,1636.8,1636.7,2.4522]
[1693691545644,10.1702022,1636.8,1636.7,4.08878597]
[1693691547444,10.1702022,1636.8,1636.7,6.47986739]
[1693691547640,10.1702022,1636.8,1636.7,9.40813091]
[1693691547641,5.495,1636.8,1636.7,9.40813091]
[1693691548148,5.495,1636.8,1636.7,10.20515805]
[1693691551552,5.495,1636.8,1636.7,7.01704949]
[1693691552347,5.495,1636.8,1636.7,11.00218519]
[1693691555453,5.495,1636.8,1636.7,7.01704949]
[1693691561852,5.495,1636.9,1636.8,0.0611]
[1693691562049,5.495,1636.9,1636.8,5.6910605]
[1693691563555,5.495,1636.9,1636.8,4.89273086]
[1693691563854,5.495,1636.9,1636.8,1.69768597]
[1693691564045,5.495,1636.9,1636.8,4.89270869]
[1693691564557,5.495,1636.9,1636.8,1.69768597]
[1693691565654,5.495,1636.9,1636.8,5.6910605]
[1693691568549,5.495,1636.9,1636.8,7.02391249]
[1693691570648,5.495,1636.9,1636.8,7.02421059]
[1693691570852,5.495,1636.9,1636.8,3.03053796]
[1693691571653,5.495,1637.1,1636.8,3.03053796]
[1693691571961,5.495,1637.1,1637.0,3.19460956]
[1693691572160,5.495,1637.1,1637.0,4.83119553]
[1693691575156,7.90026572,1637.1,1637.0,4.83119553]
[1693691575559,5.495,1637.1,1637.0,4.83119553]
[1693691585760,5.495,1637.1,1637.0,4.03285425]
[1693691587463,7.09417256,1637.1,1637.0,4.03285425]
[1693691588365,7.09417256,1637.1,1637.0,4.83119553]
[1693691591166,9.49943828,1637.1,1637.0,4.83119553]
[1693691591364,7.09417256,1637.1,1637.0,4.83119553]
[1693691593970,7.09417256,1637.1,1637.0,5.62984793]
[1693691595872,9.49943828,1637.1,1637.0,5.62984793]
[1693691596074,7.90026572,1637.1,1637.0,5.62984793]
[1693691597577,9.49943828,1637.1,1637.0,5.62984793]
[1693691598874,7.90026572,1637.1,1637.0,5.62984793]
[1693691599874,5.495,1637.1,1637.0,5.62984793]
[1693691600870,7.09417256,1637.1,1637.0,4.83470096]
[1693691602377,9.49943828,1637.1,1637.0,4.83470096]
[1693691604971,7.09417256,1637.1,1637.0,4.83470096]
[1693691605167,9.49943828,1637.1,1637.0,4.83470096]
[1693691605580,11.89819712,1637.1,1637.0,4.83470096]
[1693691606479,10.29902456,1637.1,1637.0,4.83470096]
[1693691607276,10.30535805,1637.1,1637.0,4.84089683]
[1693691607878,9.5036602,1637.1,1637.0,4.84089683]
[1693691610190,9.5036602,1637.1,1637.0,1.64195708]
[1693691610680,9.5036602,1637.1,1637.0,4.84086538]
[1693691611288,7.09839448,1637.1,1637.0,5.70173177]
[1693691613990,9.5036602,1637.1,1637.0,5.70173177]
[1693691614194,7.09839448,1637.1,1637.0,5.70173177]
[1693691615885,9.50348681,1637.1,1637.0,1.70305708]
[1693691616092,11.90875253,1637.1,1637.0,1.70305708]
[1693691616286,11.90875253,1637.1,1637.0,5.70173177]
[1693691616485,11.90875253,1637.1,1637.0,1.70305708]
[1693691616893,11.90875253,1637.1,1637.0,5.70173177]
[1693691617792,10.30535805,1637.1,1637.0,4.90241999]
[1693691621994,10.30535805,1637.1,1637.0,4.84131999]
[1693691623005,9.50406767,1637.1,1637.0,5.64063177]
[1693691623801,7.09880195,1637.1,1637.0,5.64063177]
[1693691627399,9.50406767,1637.1,1637.0,5.64063177]
[1693691636007,11.90916,1637.1,1637.0,5.64063177]
[1693691637607,9.50406767,1637.1,1637.0,5.64063177]
[1693691638010,10.30535805,1637.1,1637.0,4.84111272]
[1693691639899,10.30535805,1637.1,1637.0,4.90221272]
[1693691640110,10.30535805,1637.1,1637.0,6.23506471]
[1693691640406,7.90009233,1637.1,1637.0,6.23506471]
[1693691642009,10.30535805,1637.1,1637.0,6.23506471]
[1693691644407,10.30535805,1637.1,1637.0,4.84111272]
[1693691644612,20.60404062,1637.1,1637.0,3.24222674]
[1693691644913,16.5955534,1637.1,1636.9,4.00069635]
[1693691645108,12.08060363,1637.0,1636.9,1.60050461]
[1693691645308,11.27711918,1637.0,1636.9,1.60050461]
[1693691646107,11.27711918,1637.0,1636.9,4.00069635]
[1693691646413,11.27711918,1637.0,1636.9,3.11599903]
[1693691646708,8.07054534,1637.0,1636.9,5.51619077]
[1693691646914,8.07054534,1637.0,1636.9,4.00069635]
[1693691647114,10.47429033,1637.0,1636.9,1.60050461]
[1693691650117,10.16868147,1637.0,1636.9,1.60050461]
[1693691653127,10.4725314,1637.0,1636.8,1.60050461]
[1693691653322,7.09629656,1636.9,1636.8,1.60050461]
[1693691653523,9.50156228,1636.9,1636.8,1.60050461]
[1693691655021,9.50156228,1636.9,1636.8,1.66160461]
[1693691656323,9.50156228,1636.9,1636.8,1.60050461]
[1693691661132,7.90026572,1636.9,1636.8,1.60050461]
[1693691663434,9.50156228,1636.9,1636.8,1.60050461]
[1693691669133,9.50156228,1636.9,1636.8,1.66160461]
[1693691675144,9.50156228,1636.9,1636.8,4.15350461]
[1693691676235,11.90350716,1636.9,1636.8,2.553]
[1693691676540,11.90350716,1636.9,1636.8,2.4919]
[1693691678546,10.3022106,1636.9,1636.8,2.4919]
[1693691678947,10.30197211,1636.9,1636.8,2.4919]
[1693691680441,10.30197211,1636.9,1636.8,4.08935377]
[1693691683246,9.50204189,1636.9,1636.8,7.99557372]
[1693691683448,11.90374828,1636.9,1636.8,7.99557372]
[1693691684547,11.90374828,1636.9,1636.8,6.39811995]
[1693691685549,10.30197211,1636.9,1636.8,6.39811995]
[1693691688143,10.60763283,1636.9,1636.8,6.39811995]
[1693691689245,8.20592644,1636.9,1636.8,6.39811995]
[1693691690350,11.40820162,1636.9,1636.8,6.39811995]
[1693691693753,11.40820162,1636.9,1636.8,6.45921995]
[1693691694051,11.40820162,1636.9,1636.8,8.05956405]
[1693691698658,11.40820162,1636.9,1636.8,6.45921995]
[1693691701357,11.40820162,1636.9,1636.8,8.05968173]
[1693691703356,11.40820162,1636.9,1636.8,5.66350107]
[1693691703655,11.40820162,1636.9,1636.8,8.05968173]
[1693691704256,11.40820162,1636.9,1636.8,5.66350107]
[1693691705662,15.27970856,1636.9,1636.8,4.15346178]
[1693691708361,2.26993648,1636.8,1636.6,2.39991978]
[1693691708557,8.70247831,1636.7,1636.6,4.86781978]
[1693691708761,11.41340475,1636.7,1636.6,6.37957714]
[1693691711366,11.41340475,1636.7,1636.6,3.97965736]
[1693691713564,10.30459194,1636.7,1636.6,6.37957714]
[1693691719768,10.78315082,1636.7,1636.6,6.37957714]
[1693691720670,10.78315082,1636.7,1636.6,3.97965736]
[1693691722075,10.78315082,1636.7,1636.6,6.37957714]
[1693691722471,10.78315082,1636.7,1636.6,3.97965736]
[1693691724372,10.78315082,1636.7,1636.6,6.37957714]
[1693691724878,10.78315082,1636.7,1636.6,3.97965736]
[1693691725180,10.78315082,1636.7,1636.6,6.37957714]
[1693691725778,10.78315082,1636.7,1636.6,3.97965736]
[1693691726178,10.78315082,1636.7,1636.6,6.37957714]
[1693691726877,10.78315082,1636.7,1636.6,3.97965736]
[1693691727181,10.78315082,1636.7,1636.6,6.37957714]
[1693691728678,11.08884665,1636.7,1636.6,2.4679]
[1693691729682,8.68452043,1636.7,1636.6,2.4679]
[1693691729882,11.08818852,1636.7,1636.6,2.4679]
[1693691730185,8.68452043,1636.7,1636.6,2.4679]
[1693691730480,11.89199874,1636.7,1636.6,2.4679]
[1693691730678,8.68452043,1636.7,1636.6,2.4679]
[1693691731279,11.89199874,1636.7,1636.6,2.4679]
[1693691731481,8.68452043,1636.7,1636.6,2.4679]
[1693691731682,11.89199874,1636.7,1636.6,2.4679]
[1693691732082,8.68452043,1636.7,1636.6,2.4679]
[1693691733085,11.89199874,1636.7,1636.6,2.4679]
[1693691735583,11.89199874,1636.7,1636.6,5.33506352]
[1693691735787,10.78289319,1636.7,1636.6,9.01689496]
[1693691735982,10.78289319,1636.7,1636.6,6.14973144]
[1693691736584,8.37762747,1636.7,1636.6,9.01689496]
[1693691736785,10.78289319,1636.7,1636.6,9.01689496]
[1693691738583,10.78289319,1636.7,1636.6,6.14973144]
[1693691739188,11.08858842,1636.7,1636.6,9.01689496]
[1693691739492,10.78289319,1636.7,1636.6,9.01689496]
[1693691740584,10.78289319,1636.7,1636.6,6.14973144]
[1693691741298,11.08858677,1636.7,1636.6,6.14973144]
[1693691743389,11.08858677,1636.7,1636.6,9.01689496]
[1693691743890,11.89199649,1636.7,1636.6,6.61697518]
[1693691744289,11.89199649,1636.7,1636.6,3.74981166]
[1693691747091,11.89199649,1636.7,1636.6,6.61697518]
[1693691747693,11.89199649,1636.7,1636.6,9.01689496]
[1693691748094,11.89199649,1636.7,1636.6,6.14973144]
[1693691749397,9.48673077,1636.7,1636.6,9.01689496]
[1693691749697,11.89199649,1636.7,1636.6,9.01689496]
[1693691754198,11.89199649,1636.7,1636.6,9.81188273]
[1693691760197,9.48673077,1636.7,1636.6,9.81188273]
[1693691760596,8.68619851,1636.7,1636.6,9.81188273]
[1693691763399,8.38050493,1636.7,1636.6,9.81188273]
[1693691764506,8.68618371,1636.7,1636.6,9.81188273]
[1693691765402,7.90194605,1636.7,1636.6,9.81188273]
[1693691765600,9.50603275,1636.7,1636.6,10.61060962]
[1693691766007,7.90194605,1636.7,1636.6,9.81668577]
[1693691772412,9.5052188,1636.7,1636.6,9.81668577]
[1693691773009,7.09827275,1636.7,1636.6,9.81668577]
[1693691776316,5.495,1636.7,1636.6,5.33506352]
[1693691776512,5.495,1636.7,1636.6,9.81436832]
[1693691776513,7.09800662,1636.7,1636.6,9.81436832]
[1693691779216,1.60300662,1636.7,1636.6,9.81436832]
[1693691781215,1.60300662,1636.7,1636.6,6.61684705]
[1693691781617,1.60300662,1636.7,1636.6,9.01474992]
[1693691787921,1.60300662,1636.7,1636.6,6.61684705]
[1693691788223,7.58896139,1636.8,1636.6,6.61684705]
[1693691788423,7.58896139,1636.8,1636.7,4.47932161]
[1693691788722,7.58896139,1636.8,1636.7,5.8121736]
[1693691790714,2.09396139,1636.8,1636.7,5.8732736]
[1693691793823,0.49095477,1636.8,1636.7,5.8732736]
[1693691794025,6.61371655,1636.9,1636.8,0.0611]
[1693691794319,6.61371655,1636.9,1636.8,2.45867195]
[1693691794525,6.61371655,1636.9,1636.8,6.607619]
[1693691794726,6.61371655,1636.9,1636.8,9.237619]
[1693691796228,5.31635232,1636.9,1636.8,6.84004705]
[1693691801235,5.31635232,1636.9,1636.8,9.237619]
[1693691803233,5.01070993,1636.9,1636.8,9.237619]
[1693691818448,6.11785464,1636.9,1636.8,9.237619]
[1693691826555,5.01140879,1636.9,1636.8,10.03758513]
[1693691828457,5.31705104,1636.9,1636.8,10.03758513]
[1693691828655,5.01140879,1636.9,1636.8,10.03758513]
[1693691829448,5.31705058,1636.9,1636.8,10.03758513]
[1693691833461,2.91184179,1636.9,1636.8,9.24052373]
[1693691833762,6.11785503,1636.9,1636.8,9.24052373]
[1693691836564,6.11785503,1636.9,1636.8,6.84004705]
[1693691839867,6.11785503,1636.9,1636.8,10.03758513]
[1693691848072,8.52312075,1636.9,1636.8,7.17042161]
[1693691848771,8.52312075,1636.9,1636.8,10.03758513]
[1693691856274,5.31710751,1636.9,1636.8,6.37409121]
[1693691856471,9.32462406,1636.9,1636.8,6.37409121]
[1693691857779,5.31710751,1636.9,1636.8,6.37409121]
[1693691858279,9.32462406,1636.9,1636.8,6.37409121]
[1693691858478,5.31710751,1636.9,1636.8,6.37409121]
[1693691859372,5.31710751,1636.9,1636.8,9.24125473]
[1693691859579,8.52553385,1636.9,1636.8,9.24125473]
[1693691861179,5.31710751,1636.9,1636.8,9.24125473]
[1693691861579,8.52542223,1636.9,1636.8,9.24125473]
[1693691862476,8.52542223,1636.9,1636.8,6.37409121]
[1693691863877,8.52542223,1636.9,1636.8,9.24125473]
[1693691865983,8.52542223,1636.9,1636.8,6.37409121]
[1693691866588,8.52542223,1636.9,1636.8,9.24125473]
[1693691868085,8.52542223,1636.9,1636.8,6.37409121]
[1693691870789,8.52542223,1636.9,1636.8,7.97422535]
[1693691874094,8.52542223,1636.9,1636.8,10.84138887]
[1693691876187,8.52542223,1636.9,1636.8,7.97422535]
[1693691878799,8.52542223,1636.9,1636.8,6.37409121]
[1693691879597,8.52542223,1636.9,1636.8,9.24125473]
[1693691881089,7.7228645,1636.9,1636.8,10.03758513]
[1693691882896,5.31759878,1636.9,1636.8,10.03758513]
[1693691885003,7.7228645,1636.9,1636.8,10.03758513]
[1693691885696,6.12015651,1636.9,1636.8,12.43751779]
[1693691886002,6.12015651,1636.9,1636.8,9.23997971]
[1693691886901,8.52542223,1636.9,1636.8,9.23997971]
[1693691889605,8.52542223,1636.9,1636.8,6.37281619]
[1693691890704,8.52542223,1636.9,1636.8,9.23997971]
[1693691891403,6.12015651,1636.9,1636.8,9.23997971]
[1693691893406,8.52542223,1636.9,1636.8,9.23997971]
[1693691893804,7.72287538,1636.9,1636.8,10.03758513]
[1693691896105,5.31760966,1636.9,1636.8,10.03758513]
[1693691896503,7.72287538,1636.9,1636.8,10.03758513]
[1693691902913,5.31760966,1636.9,1636.8,10.03758513]
[1693691903110,7.72287538,1636.9,1636.8,10.03758513]
[1693691907010,7.72287538,1636.9,1636.8,7.17042161]
[1693691908817,8.52542223,1636.9,1636.8,6.37294997]
[1693691910217,8.52542223,1636.9,1636.8,9.24011349]
[1693691911815,6.12015651,1636.9,1636.8,9.24011349]
[1693691913417,8.52542223,1636.9,1636.8,9.24011349]
[1693691914616,6.12015651,1636.9,1636.8,9.24011349]
[1693691914911,8.52542223,1636.9,1636.8,9.24011349]
[1693691915917,7.72318758,1636.9,1636.8,10.03758513]
[1693691917317,5.31792186,1636.9,1636.8,10.03758513]
[1693691923723,2.91184179,1636.9,1636.8,10.03758513]
[1693691923918,6.12015651,1636.9,1636.8,6.84004705]
[1693691924124,6.12015651,1636.9,1636.8,9.24073501]
[1693691929719,6.12015651,1636.9,1636.8,10.03758513]
[1693691930125,6.12015651,1636.9,1636.8,6.84004705]
[1693691930427,6.12015651,1636.9,1636.8,10.03758513]
[1693691930725,6.12015651,1636.9,1636.8,6.84004705]
[1693691931025,2.91184179,1636.9,1636.8,10.03758513]
[1693691931623,5.31861718,1636.9,1636.8,10.03758513]
[1693691931824,7.7238829,1636.9,1636.8,10.03758513]
[1693691933425,5.31861718,1636.9,1636.8,10.03758513]
[1693691938231,7.7238829,1636.9,1636.8,10.03758513]
[1693691938431,5.31861718,1636.9,1636.8,10.03758513]
[1693691939131,6.12015651,1636.9,1636.8,10.03758513]
[1693691939933,8.52542223,1636.9,1636.8,10.03758513]
[1693691940631,5.31710751,1636.9,1636.8,10.03758513]
[1693691941031,8.52542223,1636.9,1636.8,10.03758513]
[1693691941228,5.31710751,1636.9,1636.8,10.03758513]
[1693691941731,8.52542223,1636.9,1636.8,10.03758513]
[1693691941926,5.31710751,1636.9,1636.8,10.03758513]
[1693691942330,8.52542223,1636.9,1636.8,10.03758513]
[1693691942523,2.91184179,1636.9,1636.8,10.03758513]
[1693691942924,6.12015651,1636.9,1636.8,10.03758513]
[1693691943325,2.91184179,1636.9,1636.8,10.03758513]
[1693691943525,6.12015651,1636.9,1636.8,10.03758513]
[1693691943932,2.91184179,1636.9,1636.8,10.03758513]
[1693691944328,6.12015651,1636.9,1636.8,10.03758513]
[1693691944529,2.91184179,1636.9,1636.8,10.03758513]
[1693691945640,5.31845416,1636.9,1636.8,10.03758513]
[1693691945835,2.91184179,1636.9,1636.8,10.03758513]
[1693691946029,6.12015651,1636.9,1636.8,10.03758513]
[1693691946335,8.52542223,1636.9,1636.8,10.03758513]
[1693691953229,5.31710751,1636.9,1636.8,10.03758513]
[1693691953532,7.7236539,1636.9,1636.8,10.03758513]
[1693691953730,5.31838818,1636.9,1636.8,10.03758513]
[1693691954934,5.01274639,1636.9,1636.8,10.03758513]
[1693691955728,7.41801211,1636.9,1636.8,10.03758513]
[1693691956229,5.01274639,1636.9,1636.8,6.84004705]
[1693691957331,5.01274639,1636.9,1636.8,10.04239348]
[1693691961239,6.12015226,1636.9,1636.8,10.04239348]
[1693691961735,2.91183754,1636.9,1636.8,10.04239348]
[1693691962138,6.12015226,1636.9,1636.8,10.04239348]
[1693691962339,2.91183754,1636.9,1636.8,10.04239348]
[1693691964641,5.31710326,1636.9,1636.8,10.04239348]
[1693691966946,7.72312233,1636.9,1636.8,10.04239348]
[1693691968342,7.41748479,1636.9,1636.8,10.04239348]
[1693691970846,7.41748479,1636.9,1636.8,7.17522996]
[1693691971348,7.41748479,1636.9,1636.8,10.04239348]
[1693691972747,5.01221907,1636.9,1636.8,10.04239348]
[1693691973752,7.41748479,1636.9,1636.8,10.04239348]
[1693691974845,7.41748479,1636.9,1636.8,7.17522996]
[1693691975051,6.61620989,1636.9,1636.8,8.20694864]
[1693691975348,6.61620989,1636.9,1636.8,10.74884864]
[1693691976451,5.31785117,1636.9,1636.8,9.95384604]
[1693691976851,7.72311689,1636.9,1636.8,9.95384604]
[1693691977552,5.31785117,1636.9,1636.8,9.95384604]
[1693691978252,7.72311689,1636.9,1636.8,9.95384604]
[1693691978852,7.72311689,1636.9,1636.8,7.08668252]
[1693691980349,7.41748479,1636.9,1636.8,7.08668252]
[1693691980652,7.72311608,1636.9,1636.8,7.08668252]
[1693691980852,7.41748479,1636.9,1636.8,7.08668252]
[1693691983156,7.41748479,1636.9,1636.8,9.95384604]
[1693691983557,6.61528548,1636.9,1636.8,10.74884864]
[1693691985158,4.21001976,1636.9,1636.8,10.74884864]
[1693691985361,6.61528548,1636.9,1636.8,10.74884864]
[1693691989965,6.61528548,1636.9,1636.8,7.88168512]
[1693691991566,9.02130455,1636.9,1636.8,7.88168512]
[1693691995371,9.02130455,1636.9,1636.8,10.74884864]
[1693691995571,9.02130455,1636.9,1636.8,7.88168512]
[1693691996366,9.02130455,1636.9,1636.8,10.74884864]
[1693691996570,9.02130455,1636.9,1636.8,7.88168512]
[1693691998471,7.72311545,1636.9,1636.8,7.08701097]
[1693692000176,7.72311545,1636.9,1636.8,9.95417449]
[1693692000778,7.72311545,1636.9,1636.8,7.08701097]
[1693692000979,7.72311545,1636.9,1636.8,9.95417449]
[1693692001479,7.72311545,1636.9,1636.8,7.08701097]
[1693692002078,7.72311545,1636.9,1636.8,9.95417449]
[1693692002278,7.72311545,1636.9,1636.8,7.08701097]
[1693692002877,7.72311545,1636.9,1636.8,9.95417449]
[1693692003278,7.72311545,1636.9,1636.8,7.08701097]
[1693692003978,7.72311545,1636.9,1636.8,9.95417449]
[1693692005672,9.02160409,1636.9,1636.8,10.74884864]
[1693692006582,14.02042464,1636.9,1636.8,4.48481072]
[1693692007074,14.02042464,1636.9,1636.8,3.20302719]
[1693692008381,14.02042464,1636.9,1636.8,4.48481072]
[1693692008677,14.02042464,1636.9,1636.8,3.20302719]
[1693692009277,14.02042464,1636.9,1636.8,1.28178353]
[1693692009778,14.02042464,1636.9,1636.8,2.4019487]
[1693692010179,10.81210992,1636.9,1636.8,2.4019487]
[1693692011385,13.21755279,1636.9,1636.8,2.4019487]
[1693692013586,14.02042464,1636.9,1636.8,4.00288227]
[1693692014383,14.02042464,1636.9,1636.8,5.2846658]
[1693692014987,14.02042464,1636.9,1636.8,4.00288227]
[1693692015489,14.02042464,1636.9,1636.8,5.2846658]
[1693692015880,14.02042464,1636.9,1636.8,4.00288227]
[1693692017479,14.02042464,1636.9,1636.8,5.2846658]
[1693692017789,14.02042464,1636.9,1636.8,4.00288227]
[1693692019589,14.02042464,1636.9,1636.8,2.8827171]
[1693692019790,14.02042464,1636.9,1636.8,1.60093357]
[1693692020687,14.02042464,1636.9,1636.8,2.4019487]
[1693692020688,13.21674622,1636.9,1636.8,2.4019487]
[1693692022594,13.21674622,1636.9,1636.8,3.68091254]
[1693692022793,14.02042464,1636.9,1636.8,5.28149032]
[1693692023188,14.02042464,1636.9,1636.8,5.34259032]
[1693692024288,10.81210992,1636.9,1636.8,5.34259032]
[1693692025389,13.2163374,1636.9,1636.8,5.34259032]
[1693692028689,13.2163374,1636.9,1636.8,2.94064162]
[1693692029801,13.2163374,1636.9,1636.8,5.34259032]
[1693692030201,13.2163374,1636.9,1636.8,2.94064162]
[1693692030596,10.81210992,1636.9,1636.8,2.94064162]
[1693692030796,13.21618081,1636.9,1636.8,2.94064162]
[1693692030999,10.81210992,1636.9,1636.8,2.94064162]
[1693692031200,13.21617697,1636.9,1636.8,2.94064162]
[1693692031596,10.81210992,1636.9,1636.8,2.94064162]
[1693692031797,13.2161726,1636.9,1636.8,2.94064162]
[1693692032304,10.81210992,1636.9,1636.8,2.94064162]
[1693692032600,13.21617394,1636.9,1636.8,2.94064162]
[1693692032805,13.21617024,1636.9,1636.8,2.94064162]
[1693692034307,10.81210992,1636.9,1636.8,2.94064162]
[1693692035307,13.21618753,1636.9,1636.8,2.94064162]
[1693692035508,10.81210992,1636.9,1636.8,2.94064162]
[1693692035703,14.02042464,1636.9,1636.8,1.66167778]
[1693692037509,10.50646572,1636.9,1636.8,0.0611]
[1693692037710,14.01769084,1636.9,1636.8,1.6614758]
[1693692040811,10.50646572,1636.9,1636.8,0.0611]
[1693692041012,10.50646572,1636.9,1636.8,1.66158805]
[1693692041013,14.01790587,1636.9,1636.8,1.66158805]
[1693692043917,14.01790587,1636.9,1636.8,5.34129578]
[1693692044217,14.01790587,1636.9,1636.8,3.74080773]
[1693692051017,14.01790587,1636.9,1636.8,2.9413356]
[1693692051211,10.81212914,1636.9,1636.8,5.34206768]
[1693692052115,14.81935006,1636.9,1636.8,5.34206768]
[1693692056620,14.81935006,1636.9,1636.8,3.74080773]
[1693692058016,14.82277516,1636.9,1636.8,2.46388731]
[1693692058210,14.82277516,1636.9,1636.8,3.74378062]
[1693692058919,14.0206926,1636.9,1636.8,3.74378062]
[1693692066129,18.2072676,1636.9,1636.8,3.74378062]
[1693692068830,18.2072676,1636.9,1636.8,5.34603226]
[1693692069326,18.2072676,1636.9,1636.8,3.74378062]
[1693692073132,14.02138482,1636.9,1636.8,3.74378062]
[1693692075035,14.02138482,1636.9,1636.8,6.61094414]
[1693692076135,14.02138482,1636.9,1636.8,3.74378062]
[1693692076939,14.02138482,1636.9,1636.8,4.54470972]
[1693692081151,14.02138482,1636.9,1636.8,3.74448119]
[1693692086650,14.02138482,1636.9,1636.8,1.34099331]
[1693692087451,14.02138482,1636.9,1636.8,3.77109331]
[1693692088148,14.82277516,1636.9,1636.8,6.1744693]
[1693692092156,14.02114223,1636.9,1636.8,6.1744693]
[1693692096255,14.02114223,1636.9,1636.8,6.97480972]
[1693692096854,14.02114223,1636.9,1636.8,9.84197324]
[1693692097155,14.02114223,1636.9,1636.8,6.97480972]
[1693692102060,13.21870243,1636.9,1636.8,6.97480972]
[1693692102260,10.81212871,1636.9,1636.8,6.97480972]
[1693692103062,14.02114223,1636.9,1636.8,6.97480972]
[1693692103253,14.02114223,1636.9,1636.8,6.17420021]
[1693692104155,1.60467161,1636.8,1636.7,1.82096417]
[1693692104360,1.60467161,1636.8,1636.6,0.38234539]
[1693692104361,0.08253183,1636.7,1636.6,0.38234539]
[1693692104559,5.88319482,1636.7,1636.5,0.0611]
[1693692104861,9.00812571,1636.6,1636.5,0.0611]
[1693692105058,10.61279732,1636.6,1636.5,0.0611]
[1693692106556,7.4053346,1636.6,1636.5,0.0611]
[1693692107563,9.80932791,1636.6,1636.5,0.0611]
[1693692109462,9.50366492,1636.6,1636.5,0.0611]
[1693692111266,8.70169628,1636.6,1636.5,0.0611]
[1693692115859,9.18131962,1636.6,1636.5,0.0611]
[1693692116260,9.18131962,1636.6,1636.4,2.4254]
[1693692116467,5.57753183,1636.5,1636.4,2.4254]
[1693692118460,7.1795565,1636.5,1636.4,2.4254]
[1693692119167,5.57753183,1636.5,1636.4,2.4254]
[1693692119461,1.60202467,1636.8,1636.5,0.45008211]
[1693692119660,1.60202467,1636.8,1636.6,5.495]
[1693692119860,1.60202467,1636.8,1636.6,7.9906]
[1693692120055,1.60202467,1636.8,1636.7,2.92826352]
[1693692120264,1.6845565,1636.8,1636.7,2.92826352]
[1693692120466,1.60202467,1636.8,1636.7,2.92826352]
[1693692125271,4.00601798,1636.9,1636.8,0.0611]
[1693692125568,4.00601798,1636.9,1636.8,2.33103648]
[1693692125867,4.00601798,1636.9,1636.8,4.70213648]
[1693692126464,2.40399331,1636.9,1636.8,4.70213648]
[1693692128069,1.6005402,1637.0,1636.8,10.90182377]
[1693692128376,1.60047022,1637.0,1636.9,8.36216352]
[1693692128872,1.68300205,1637.0,1636.9,5.495]
[1693692130274,1.68300205,1637.0,1636.9,8.36216352]
[1693692131273,1.60047022,1637.0,1636.9,8.36216352]
[1693692131877,1.60047022,1637.0,1636.9,2.86716352]
[1693692133575,4.00446353,1637.1,1636.9,2.86716352]
[1693692133777,4.08699536,1637.1,1636.9,2.86716352]
[1693692133979,4.08699536,1637.1,1636.9,5.39286352]
[1693692134778,1.68300205,1637.1,1636.9,5.39286352]
[1693692134973,4.00446353,1637.1,1636.9,5.39286352]
[1693692135175,9.49946353,1637.2,1637.1,0.0611]